bitfinex/quotes_SOLUSD_20250831
["timestamp","ask_amount","ask_price","bid_price","bid_amount"]
[1756629046456,5.5809059,204.88,204.87,19.26]
[1756629047353,5.5809059,204.88,204.85,19.29]
[1756629047554,0.7,204.87,204.85,19.29]
[1756629047775,0.7,204.86,204.85,0.03]
[1756629048168,5.5813824,204.86,204.85,0.03]
[1756629049277,5.5813824,204.86,204.85,19.29]
[1756629049278,0.7,204.86,204.85,19.29]
[1756629051466,26.7,204.86,204.85,19.29]
[1756629054089,31.5813824,204.86,204.85,19.29]
[1756629054273,31.5813824,204.86,204.85,0.03]
[1756629054885,31.5813824,204.86,204.85,19.29]
[1756629056383,31.5813824,204.86,204.85,0.03]
[1756629058695,45.17697641,204.86,204.85,0.03]
[1756629065495,45.17697641,204.86,204.84,0.03]
[1756629065496,13.59559401,204.85,204.84,1e-08]
[1756629066104,18.47769135,204.83,204.82,0.2]
[1756629066275,39.59559401,204.81,204.78,0.2]
[1756629066698,40.27559401,204.81,204.78,0.2]
[1756629067482,54.96239801,204.81,204.78,0.2]
[1756629068073,59.8449721,204.81,204.78,0.2]
[1756629069399,97.8249721,204.81,204.78,0.2]
[1756629072703,13.59559401,204.8,204.78,0.2]
[1756629072907,71.8249721,204.81,204.78,0.2]
[1756629072908,51.55559401,204.79,204.78,0.2]
[1756629073110,13.59559401,204.78,204.77,0.03]
[1756629073416,26.0,204.76,204.75,0.03]
[1756629073587,63.96,204.76,204.75,0.03]
[1756629073781,69.52376636,204.76,204.75,0.03]
[1756629074816,83.11936037,204.76,204.75,0.03]
[1756629076434,4.10914044,204.8,204.7,19.26]
[1756629076634,26.0,204.75,204.73,19.26]
[1756629076791,26.0,204.75,204.74,0.29]
[1756629077194,26.0,204.75,204.73,19.26]
[1756629077390,26.0,204.75,204.73,19.55]
[1756629080103,26.0,204.75,204.73,19.26]
[1756629080300,26.0,204.74,204.73,19.26]
[1756629088134,26.0,204.74,204.73,19.29]
[1756629089591,26.68,204.74,204.73,19.29]
[1756629090227,26.0,204.74,204.73,19.29]
[1756629096713,26.68,204.74,204.73,19.29]
[1756629098038,19.15983744,204.74,204.73,19.29]
[1756629098200,19.15983744,204.74,204.73,0.03]
[1756629099523,0.06,204.76,204.73,19.29]
[1756629099706,26.0,204.74,204.73,19.29]
[1756629103324,26.68,204.74,204.73,19.29]
[1756629103839,26.0,204.74,204.73,19.29]
[1756629106612,26.68,204.74,204.73,19.29]
[1756629109817,26.0,204.74,204.73,19.29]
[1756629111813,26.68,204.74,204.73,19.29]
[1756629114242,31.56424343,204.74,204.73,19.29]
[1756629114442,45.15983744,204.74,204.73,0.03]
[1756629114734,83.09983744,204.74,204.73,0.03]
[1756629118252,88.54801856,204.74,204.73,0.03]
[1756629120549,31.44818112,204.74,204.73,0.03]
[1756629120849,49.01221539,204.75,204.73,19.29]
[1756629121053,0.68,204.74,204.73,19.29]
[1756629121556,19.72377513,204.74,204.73,0.03]
[1756629122145,19.15983744,204.74,204.73,0.03]
[1756629123631,24.60801856,204.74,204.73,0.03]
[1756629124131,26.0,204.71,204.7,0.03]
[1756629124460,63.92,204.71,204.7,0.03]
[1756629124664,64.58,204.71,204.7,0.03]
[1756629125352,69.46495921,204.71,204.7,0.03]
[1756629125954,30.88495921,204.71,204.7,0.03]
[1756629126132,44.48055322,204.71,204.7,0.03]
[1756629127253,45.14055322,204.71,204.7,0.03]
[1756629139143,82.40055322,204.71,204.7,0.03]
[1756629140145,17.70933754,204.71,204.7,0.03]
[1756629140461,4.11374353,204.72,204.71,19.26]
[1756629140645,4.17374353,204.75,204.73,19.26]
[1756629140843,0.06,204.75,204.73,19.55]
[1756629141043,26.0,204.74,204.73,19.55]
[1756629141550,0.06,204.75,204.73,19.55]
[1756629141940,26.0,204.74,204.73,19.26]
[1756629142971,0.06,204.75,204.73,19.55]
[1756629143666,0.06,204.75,204.73,19.26]
[1756629147472,26.0,204.74,204.73,19.26]
[1756629152650,26.69,204.74,204.73,19.26]
[1756629153269,26.0,204.74,204.73,19.26]
[1756629154768,26.69,204.74,204.73,19.26]
[1756629155468,26.0,204.74,204.73,19.26]
[1756629157677,13.59559401,204.73,204.71,19.26]
[1756629157868,26.0,204.71,204.7,0.03]
[1756629158067,4.11374353,204.71,204.7,0.03]
[1756629158453,4.80374353,204.71,204.7,0.03]
[1756629158871,18.39933754,204.71,204.7,0.03]
[1756629159075,39.59559401,204.69,204.68,0.03]
[1756629159270,77.47559401,204.69,204.68,0.03]
[1756629159450,78.16559401,204.69,204.68,0.03]
[1756629159654,83.05103052,204.69,204.68,0.03]
[1756629162166,87.16476154,204.69,204.68,0.03]
[1756629164471,86.47476154,204.69,204.68,0.03]
[1756629164786,87.16476154,204.69,204.68,0.03]
[1756629164980,86.47476154,204.69,204.68,0.03]
[1756629165578,49.28476154,204.69,204.68,0.03]
[1756629165780,45.17103052,204.69,204.67,0.03]
[1756629165983,45.17103052,204.69,204.65,0.03]
[1756629165984,30.88615264,204.66,204.65,0.03]
[1756629166182,68.78615264,204.66,204.65,0.03]
[1756629166370,69.47615264,204.66,204.65,0.03]
[1756629167972,13.59559401,204.65,204.64,0.2]
[1756629168490,13.59559401,204.65,204.6,19.26]
[1756629168491,13.59559401,204.61,204.6,19.26]
[1756629168806,52.18559401,204.61,204.6,19.26]
[1756629169371,26.0,204.59,204.58,19.26]
[1756629169691,30.88782442,204.59,204.58,19.26]
[1756629169864,26.0,204.59,204.58,19.26]
[1756629170491,30.88782442,204.59,204.58,19.26]
[1756629174904,44.48341843,204.59,204.58,19.26]
[1756629175112,31.57782442,204.59,204.56,19.26]
[1756629175404,37.9,204.58,204.56,19.26]
[1756629175613,69.47782442,204.59,204.56,19.26]
[1756629176591,31.57782442,204.59,204.56,19.26]
[1756629177074,45.17341843,204.59,204.58,0.03]
[1756629180703,26.0,204.6,204.58,0.03]
[1756629180902,26.0,204.6,204.59,19.26]
[1756629181406,26.0,204.6,204.59,19.55]
[1756629181604,26.0,204.6,204.59,19.26]
[1756629183795,26.0,204.6,204.58,0.03]
[1756629183796,31.55758553,204.6,204.58,0.03]
[1756629183998,26.67,204.59,204.58,0.03]
[1756629184600,40.26559401,204.59,204.58,0.03]
[1756629184921,83.05341843,204.59,204.58,0.03]
[1756629185610,13.59559401,204.58,204.55,19.29]
[1756629185801,38.57,204.57,204.55,19.29]
[1756629186121,26.0,204.54,204.53,0.03]
[1756629186814,19.15461327,204.54,204.53,0.03]
[1756629188803,26.0,204.52,204.5,19.26]
[1756629189031,26.0,204.51,204.5,19.26]
[1756629191815,13.59559401,204.56,204.53,19.26]
[1756629192019,0.67,204.55,204.53,19.26]
[1756629192341,30.88901926,204.54,204.53,19.26]
[1756629192631,26.0,204.54,204.53,19.26]
[1756629194806,30.88901926,204.54,204.53,19.26]
[1756629195013,31.55901926,204.54,204.53,19.26]
[1756629195227,69.45901926,204.54,204.53,19.26]
[1756629196112,31.55901926,204.54,204.53,19.26]
[1756629196313,83.05461327,204.54,204.53,19.26]
[1756629199511,83.05461327,204.54,204.5,19.29]
[1756629199712,0.67,204.53,204.5,19.29]
[1756629199912,0.67,204.52,204.5,19.29]
[1756629200231,83.05461327,204.54,204.52,19.26]
[1756629201726,45.15461327,204.54,204.52,19.26]
[1756629201929,12.22069308,204.58,204.52,19.26]
[1756629201930,26.0,204.53,204.52,19.26]
[1756629202322,14.704801,204.58,204.56,19.26]
[1756629202524,18.4832283,204.6,204.59,19.26]
[1756629202831,45.1532283,204.6,204.59,19.26]
[1756629204333,44.4832283,204.6,204.59,19.26]
[1756629204643,4.08908532,204.62,204.59,19.26]
[1756629204818,4.88686898,204.63,204.61,19.26]
[1756629205141,0.67,204.62,204.61,19.26]
[1756629205435,26.0,204.62,204.61,19.26]
[1756629207438,30.8871078,204.62,204.61,19.26]
[1756629207639,4.8871078,204.62,204.61,19.26]
[1756629209128,8.97598534,204.63,204.61,19.26]
[1756629209331,9.64598534,204.63,204.61,19.26]
[1756629210251,8.97598534,204.63,204.61,19.26]
[1756629210446,4.08908532,204.62,204.61,19.55]
[1756629210644,0.06,204.64,204.61,19.55]
[1756629210645,4.08908532,204.63,204.61,19.55]
[1756629210945,0.06,204.67,204.63,19.26]
[1756629211129,0.06,204.67,204.66,19.26]
[1756629211323,0.06,204.67,204.66,19.49]
[1756629213549,0.06,204.67,204.66,19.26]
[1756629213740,0.06,204.67,204.66,19.49]
[1756629217024,0.06,204.67,204.66,19.26]
[1756629220250,26.72,204.67,204.66,19.26]
[1756629221930,40.31559401,204.67,204.66,19.26]
[1756629222151,45.20150792,204.67,204.66,19.26]
[1756629222451,45.20150792,204.67,204.63,19.26]
[1756629222745,0.66,204.66,204.63,19.26]
[1756629222952,0.66,204.65,204.63,19.26]
[1756629223251,5.54663017,204.64,204.63,19.26]
[1756629224641,26.0,204.62,204.61,19.26]
[1756629224830,26.66,204.62,204.61,19.26]
[1756629225839,0.66,204.65,204.61,19.26]
[1756629226047,0.66,204.65,204.64,19.26]
[1756629226445,26.66,204.65,204.64,19.26]
[1756629227335,31.54639139,204.65,204.64,19.26]
[1756629230863,26.66,204.65,204.64,19.26]
[1756629233143,26.06,204.67,204.64,19.26]
[1756629233336,0.66,204.66,204.64,19.26]
[1756629233537,0.66,204.65,204.64,19.26]
[1756629234154,5.60639139,204.65,204.64,19.26]
[1756629234340,31.60639139,204.65,204.64,19.26]
[1756629236336,31.60639139,204.65,204.61,0.03]
[1756629236337,26.0,204.63,204.62,19.26]
[1756629236537,26.66,204.63,204.62,19.26]
[1756629236948,26.0,204.63,204.62,19.26]
[1756629237946,26.0,204.64,204.62,19.26]
[1756629238633,0.72,204.65,204.64,19.26]
[1756629238875,26.72,204.65,204.64,19.26]
[1756629240259,31.60639139,204.65,204.64,19.26]
[1756629240672,26.72,204.65,204.64,19.26]
[1756629241865,26.06,204.65,204.64,19.26]
[1756629242470,26.77,204.65,204.64,19.26]
[1756629244573,31.65639139,204.65,204.64,19.26]
[1756629245773,31.65639139,204.65,204.62,19.26]
[1756629246176,0.71,204.64,204.62,19.26]
[1756629246848,0.71,204.63,204.62,19.26]
[1756629247173,5.59686898,204.63,204.62,19.26]
[1756629247674,4.88667205,204.64,204.62,19.26]
[1756629248761,5.59667205,204.64,204.62,19.26]
[1756629249081,31.59667205,204.64,204.62,19.26]
[1756629249252,0.71,204.63,204.62,19.26]
[1756629250958,30.88667205,204.64,204.62,19.26]
[1756629251274,31.59667205,204.64,204.62,19.26]
[1756629252470,31.59667205,204.64,204.62,19.29]
[1756629252876,26.0,204.64,204.62,19.29]
[1756629253573,26.0,204.64,204.62,19.52]
[1756629253889,26.0,204.64,204.62,19.29]
[1756629255983,26.71,204.64,204.62,19.29]
[1756629256570,26.0,204.64,204.62,19.29]
[1756629257185,26.71,204.64,204.62,19.29]
[1756629258383,30.82940271,204.64,204.62,19.29]
[1756629259482,30.11940271,204.64,204.62,19.29]
[1756629259685,30.82940271,204.64,204.62,19.29]
[1756629259872,30.11940271,204.64,204.62,19.29]
[1756629260067,0.71,204.63,204.62,19.29]
[1756629260378,30.82940271,204.64,204.62,19.29]
[1756629261688,30.11940271,204.64,204.62,24.40710387]
[1756629261862,26.0,204.64,204.62,19.29]
[1756629262264,30.11940271,204.64,204.62,19.29]
[1756629262483,30.82940271,204.64,204.62,19.29]
[1756629263476,30.11940271,204.64,204.62,19.29]
[1756629264365,4.11940271,204.64,204.62,19.29]
[1756629264568,0.06,204.65,204.64,19.26]
[1756629264872,0.06,204.65,204.64,22.55584728]
[1756629265072,0.06,204.65,204.64,22.78584728]
[1756629265274,0.06,204.65,204.64,22.78594757]
[1756629265966,0.06,204.65,204.64,27.67257774]
[1756629266562,0.06,204.65,204.64,22.55594757]
[1756629270193,0.77,204.65,204.64,22.55594757]
[1756629270396,0.77,204.65,204.64,19.26]
[1756629270783,0.06,204.65,204.64,19.26]
[1756629271181,0.06,204.65,204.64,22.48869264]
[1756629274295,0.06,204.65,204.64,19.26]
[1756629276001,0.73,204.65,204.64,19.26]
[1756629282507,0.06,204.65,204.64,19.26]
[1756629283594,0.73,204.65,204.64,19.26]
[1756629286007,5.61639139,204.65,204.64,19.26]
[1756629288385,5.61639139,204.65,204.62,0.03]
[1756629288386,26.0,204.63,204.62,19.29]
[1756629288582,26.67,204.63,204.62,19.29]
[1756629291011,31.55686898,204.63,204.62,19.29]
[1756629294098,26.67,204.63,204.62,19.29]
[1756629294712,26.0,204.63,204.62,19.29]
[1756629295209,26.73,204.65,204.62,19.29]
[1756629295405,0.06,204.65,204.64,19.26]
[1756629296624,0.73,204.65,204.64,19.26]
[1756629297910,0.06,204.65,204.64,19.26]
[1756629300319,26.73,204.65,204.64,19.26]
[1756629303907,26.73,204.65,204.62,19.29]
[1756629303908,31.61639139,204.65,204.62,19.29]
[1756629304230,0.68,204.64,204.62,19.29]
[1756629304420,0.68,204.63,204.62,19.29]
[1756629306022,5.56686898,204.63,204.62,19.29]
[1756629313726,5.56686898,204.63,204.62,0.03]
[1756629313727,19.16246299,204.63,204.62,0.03]
[1756629315118,39.34516358,204.63,204.61,0.03]
[1756629315308,37.86,204.62,204.61,0.03]
[1756629315730,43.4271078,204.62,204.61,0.03]
[1756629315929,13.59559401,204.61,204.59,0.03]
[1756629316231,13.59559401,204.61,204.57,0.03]
[1756629316232,39.59559401,204.59,204.57,0.03]
[1756629316448,55.57239338,204.58,204.57,0.03]
[1756629316617,56.25239338,204.58,204.57,0.03]
[1756629316932,26.0,204.55,204.54,19.26]
[1756629317144,0.68,204.55,204.54,19.26]
[1756629317835,69.42878024,204.55,204.54,19.26]
[1756629318142,69.42878024,204.55,204.52,19.26]
[1756629319540,68.74878024,204.55,204.54,19.26]
[1756629320035,31.56878024,204.55,204.54,19.26]
[1756629320221,69.42878024,204.55,204.54,19.26]
[1756629321545,83.02437425,204.55,204.54,19.26]
[1756629322846,63.86,204.55,204.54,19.26]
[1756629323448,68.74878024,204.55,204.54,19.26]
[1756629323634,69.42878024,204.55,204.54,19.26]
[1756629324145,57.02437425,204.55,204.52,19.26]
[1756629324542,56.34437425,204.55,204.54,19.26]
[1756629325043,71.04845425,204.55,204.54,19.26]
[1756629325346,71.72845425,204.55,204.54,19.29]
[1756629325641,71.72845425,204.55,204.54,0.03]
[1756629325845,71.72845425,204.55,204.54,19.29]
[1756629327032,71.72845425,204.55,204.54,0.03]
[1756629328853,71.72845425,204.55,204.54,19.29]
[1756629335354,33.86845425,204.55,204.54,19.29]
[1756629335562,71.72845425,204.55,204.54,19.29]
[1756629337749,33.86845425,204.55,204.54,19.29]
[1756629337942,71.72845425,204.55,204.54,19.29]
[1756629343948,71.72845425,204.55,204.54,0.03]
[1756629344159,71.72845425,204.55,204.54,19.29]
[1756629345238,66.15967401,204.55,204.54,19.29]
[1756629345653,71.04845425,204.55,204.54,19.29]
[1756629346365,0.06,204.57,204.54,19.52]
[1756629346675,0.06,204.57,204.56,19.26]
[1756629353166,26.06,204.57,204.56,19.26]
[1756629353366,0.06,204.57,204.56,19.26]
[1756629355775,26.06,204.57,204.56,19.26]
[1756629356279,0.06,204.57,204.56,19.26]
[1756629357985,0.06,204.57,204.56,19.49]
[1756629360085,0.06,204.57,204.56,24.37854125]
[1756629361387,0.06,204.57,204.56,19.49]
[1756629362095,0.06,204.57,204.56,24.37854125]
[1756629363202,0.06,204.57,204.56,27.47748787]
[1756629363779,0.06,204.57,204.56,29.43668687]
[1756629366196,0.06,204.57,204.56,80.87228088]
[1756629366582,0.06,204.57,204.56,202.87228088]
[1756629367212,0.06,204.62,204.61,32.85559401]
[1756629367386,0.06,204.62,204.61,73.79454063]
[1756629367585,0.06,204.62,204.61,74.02454063]
[1756629367789,0.06,204.62,204.61,75.98306863]
[1756629368195,0.06,204.62,204.61,80.87041528]
[1756629370291,0.06,204.62,204.61,77.77146866]
[1756629370495,0.06,204.62,204.61,97.77146866]
[1756629373312,0.06,204.62,204.61,219.77146866]
[1756629374104,0.06,204.62,204.61,181.93146866]
[1756629374410,0.06,204.62,204.61,77.75146866]
[1756629374806,0.06,204.62,204.61,80.8605554]
[1756629375195,0.06,204.62,204.61,29.21496139]
[1756629375394,0.06,204.62,204.61,42.8105554]
[1756629375600,0.06,204.62,204.61,80.6305554]
[1756629376413,0.06,204.62,204.61,77.52146866]
[1756629376609,0.06,204.62,204.61,80.62792382]
[1756629377309,0.73,204.62,204.61,19.26]
[1756629377510,0.73,204.62,204.61,57.08]
[1756629380190,26.73,204.62,204.61,57.08]
[1756629380599,26.73,204.62,204.61,19.26]
[1756629380804,0.73,204.62,204.61,57.06]
[1756629382496,0.06,204.62,204.61,57.06]
[1756629383118,0.73,204.62,204.61,57.06]
[1756629384595,0.06,204.62,204.61,57.06]
[1756629384797,0.06,204.62,204.61,61.94734665]
[1756629386108,0.06,204.62,204.61,62.17734665]
[1756629386423,0.06,204.62,204.61,61.94734665]
[1756629388896,0.06,204.62,204.61,62.17734665]
[1756629389221,0.06,204.62,204.61,75.77294066]
[1756629389426,0.06,204.62,204.61,78.40185266]
[1756629395117,0.06,204.62,204.61,200.40185266]
[1756629397727,0.06,204.62,204.61,200.17185266]
[1756629398636,0.06,204.62,204.61,200.40185266]
[1756629399132,0.06,204.65,204.64,32.85559401]
[1756629399322,0.06,204.65,204.64,74.52844547]
[1756629399512,0.06,204.65,204.64,74.75844547]
[1756629400319,0.06,204.65,204.64,81.60331564]
[1756629400515,0.06,204.65,204.64,81.37331564]
[1756629401914,0.06,204.65,204.64,81.60331564]
[1756629402109,0.06,204.65,204.64,81.37331564]
[1756629402725,0.06,204.65,204.64,203.37331564]
[1756629403011,0.06,204.65,204.64,203.60331564]
[1756629403214,1e-08,204.65,204.64,229.60331564]
[1756629406244,1e-08,204.65,204.64,229.37331564]
[1756629407242,1e-08,204.65,204.64,187.70046418]
[1756629407457,1e-08,204.65,204.64,229.35331564]
[1756629409737,1e-08,204.65,204.64,191.57331564]
[1756629409936,1e-08,204.65,204.64,229.35331564]
[1756629410642,1e-08,204.65,204.64,107.35331564]
[1756629411227,0.66000001,204.65,204.64,39.70046418]
[1756629411432,0.66000001,204.65,204.64,18.54]
[1756629411433,4.53285147,204.65,204.64,18.54]
[1756629411641,4.53285147,204.65,204.64,56.32]
[1756629412519,4.53285147,204.65,204.64,18.54]
[1756629412720,4.53285147,204.65,204.64,56.32]
[1756629413236,4.53285147,204.65,204.64,18.54]
[1756629413437,4.53285147,204.65,204.64,56.32]
[1756629415253,4.53285147,204.65,204.64,56.35]
[1756629415955,0.66000001,204.65,204.64,56.35]
[1756629416117,0.66000001,204.65,204.64,61.23663017]
[1756629416926,4.53285147,204.65,204.64,18.57]
[1756629417131,4.53285147,204.65,204.64,56.35]
[1756629422450,1e-08,204.65,204.64,77.89244326]
[1756629422634,1e-08,204.65,204.64,26.51684925]
[1756629422837,1e-08,204.65,204.64,64.29684925]
[1756629423244,1e-08,204.65,204.64,181.41021908]
[1756629423455,4.56285147,204.65,204.64,59.41021908]
[1756629423748,4.56285147,204.65,204.64,56.35]
[1756629425158,4.56285147,204.65,204.64,59.41153741]
[1756629429457,0.69000001,204.65,204.64,59.41153741]
[1756629429664,4.56285147,204.65,204.64,59.41153741]
[1756629430247,3.87285147,204.65,204.64,59.41153741]
[1756629434367,3.87285147,204.65,204.64,59.41472529]
[1756629434860,3.87285147,204.65,204.64,73.6703193]
[1756629434861,1e-08,204.65,204.64,73.6703193]
[1756629435061,1e-08,204.65,204.64,82.42980093]
[1756629435251,1e-08,204.65,204.64,78.55694947]
[1756629435570,1e-08,204.65,204.64,84.38794593]
[1756629435865,1e-08,204.65,204.64,206.38794593]
[1756629436671,1e-08,204.65,204.64,226.38794593]
[1756629438182,0.06,204.67,204.66,18.54]
[1756629438362,0.06,204.67,204.66,63.25757675]
[1756629438556,0.06,204.67,204.66,63.91757675]
[1756629438897,0.06,204.67,204.66,65.87552875]
[1756629440669,0.06,204.67,204.66,84.3572754]
[1756629444380,0.06,204.67,204.66,206.3572754]
[1756629445082,0.06,204.67,204.66,203.29255011]
[1756629445377,0.06,204.67,204.66,206.3877506]
[1756629451878,0.06,204.67,204.66,168.6077506]
[1756629452180,0.06,204.67,204.66,206.3677506]
[1756629455565,0.06,204.68,204.67,13.59559401]
[1756629455767,0.06,204.69,204.68,52.13559401]
[1756629456068,0.06,204.69,204.68,93.6682099]
[1756629456384,0.06,204.69,204.68,99.49863036]
[1756629457088,0.06,204.69,204.68,104.38430556]
[1756629457463,0.06,204.69,204.68,99.8314541]
[1756629457664,0.06,204.69,204.68,103.70430556]
[1756629460283,0.06,204.69,204.68,42.0714541]
[1756629460486,0.77,204.69,204.68,77.8538851]
[1756629461782,0.77,204.69,204.68,199.8538851]
[1756629466575,0.77,204.69,204.68,196.76126921]
[1756629466780,0.77,204.69,204.68,199.85290782]
[1756629468064,0.77,204.69,204.68,77.85290782]
[1756629469688,0.06,204.69,204.68,77.85290782]
[1756629469890,0.77,204.69,204.68,77.85290782]
[1756629471076,0.77,204.69,204.68,199.85290782]
[1756629471486,0.06,204.69,204.68,199.85290782]
[1756629474693,0.77,204.69,204.68,199.85290782]
[1756629476289,0.06,204.69,204.68,199.85290782]
[1756629477404,0.06,204.69,204.68,162.11290782]
[1756629477574,0.06,204.69,204.68,199.86103433]
[1756629480273,0.77,204.69,204.68,199.86103433]
[1756629480474,0.06,204.69,204.68,199.86103433]
[1756629481577,0.77,204.69,204.68,162.12103433]
[1756629481910,0.06,204.69,204.68,199.86103433]
[1756629483609,0.06,204.69,204.68,162.12103433]
[1756629483772,0.06,204.69,204.68,199.86103433]
[1756629484473,0.06,204.69,204.68,199.89103433]
[1756629484875,0.06,204.69,204.68,200.55103433]
[1756629485599,0.00838542,204.69,204.68,200.55103433]
[1756629485896,0.00838542,204.69,204.68,225.56762655]
[1756629487100,0.00838542,204.69,204.68,225.5904786]
[1756629487294,0.00838542,204.69,204.68,226.98291281]
[1756629487881,0.06,204.72,204.71,32.13559401]
[1756629488081,0.06,204.72,204.71,96.84894161]
[1756629488283,0.06,204.74,204.73,18.54]
[1756629488482,0.06,204.74,204.73,63.2533476]
[1756629488691,0.06,204.74,204.73,83.9133476]
[1756629489107,0.06,204.74,204.73,88.7978296]
[1756629489779,0.06,204.74,204.73,84.26709917]
[1756629491001,0.06,204.74,204.73,46.54709917]
[1756629491195,4.64073043,204.74,204.73,72.97821118]
[1756629491994,4.64073043,204.74,204.73,77.86269318]
[1756629493323,0.77,204.74,204.73,77.86269318]
[1756629493488,4.64073043,204.74,204.73,77.86269318]
[1756629494212,0.77,204.74,204.73,77.86269318]
[1756629494512,4.64073043,204.74,204.73,77.86269318]
[1756629496213,4.64073043,204.74,204.73,40.14269318]
[1756629496421,0.77,204.74,204.73,77.86269318]
[1756629497014,0.77,204.74,204.73,35.25821118]
[1756629497203,0.77,204.74,204.73,72.97821118]
[1756629497614,0.77,204.74,204.73,77.86269318]
[1756629497789,0.77,204.74,204.73,77.85419609]
[1756629498110,0.77,204.74,204.73,40.13419609]
[1756629498413,0.77,204.74,204.73,77.85419609]
[1756629498598,0.77,204.74,204.73,72.96971409]
[1756629499136,0.77,204.74,204.73,77.85419609]
[1756629499815,0.77,204.74,204.73,21.65412008]
[1756629500000,0.77,204.74,204.73,59.37412008]
[1756629501416,0.77,204.74,204.73,64.25797515]
[1756629501591,0.06,204.74,204.73,64.25797515]
[1756629501908,0.06,204.74,204.73,61.144482]
[1756629503793,0.06,204.74,204.73,23.424482]
[1756629504005,0.77,204.74,204.73,61.124482]
[1756629507707,0.06,204.74,204.73,61.124482]
[1756629508099,0.06,204.74,204.73,74.72007601]
[1756629510322,0.06,204.74,204.73,196.72007601]
[1756629513123,0.06,204.74,204.73,74.72007601]
[1756629513422,0.76,204.74,204.73,18.54]
[1756629513606,0.76,204.74,204.73,56.24]
[1756629513810,3.23719103,204.74,204.73,56.24]
[1756629514009,3.23719103,204.74,204.73,18.54]
[1756629514412,3.23719103,204.74,204.73,56.24]
[1756629517120,3.23719103,204.74,204.73,18.54]
[1756629517419,3.23719103,204.74,204.73,56.24]
[1756629518328,0.76,204.74,204.73,56.24]
[1756629518532,3.23719103,204.74,204.73,56.24]
[1756629521531,0.06,204.74,204.73,70.52559401]
[1756629522236,0.06,204.74,204.73,192.52559401]
[1756629522430,0.06,204.74,204.73,197.41007601]
[1756629522639,0.06,204.74,204.73,199.88726704]
[1756629525236,0.06,204.74,204.73,77.88726704]
[1756629525410,0.06,204.74,204.73,79.27912572]
[1756629526329,0.06,204.74,204.73,81.23621672]
[1756629528237,0.06,204.74,204.73,203.23621672]
[1756629528438,0.06,204.74,204.73,165.53621672]
[1756629528748,0.06,204.74,204.73,203.23621672]
[1756629528922,0.06,204.74,204.73,165.53621672]
[1756629529244,0.06,204.74,204.73,203.21621672]
[1756629529439,0.06,204.75,204.73,203.21621672]
[1756629529440,0.06,204.75,204.74,59.59559401]
[1756629529650,0.06,204.75,204.74,64.15464372]
[1756629529939,0.06,204.75,204.74,101.83464372]
[1756629530138,0.02458661,204.77,204.76,39.59559401]
[1756629530343,0.02458661,204.77,204.76,89.15740196]
[1756629530526,0.02458661,204.77,204.76,108.38745216]
[1756629530720,0.02458661,204.77,204.76,110.34425516]
[1756629531241,0.06,204.78,204.77,33.59559401]
[1756629531424,0.06,204.79,204.78,32.13559401]
[1756629531623,0.06,204.79,204.78,77.5036858]
[1756629532043,0.06,204.79,204.78,82.35665116]